fUSD/lending_fUSD_20250818
["ID","MTS","AMOUNT","RATE_DAILY","PERIOD"]
[380037180,1755495032140,-8317.04024091,0.00010789,2]
[380037182,1755495032150,-2292.13927089,0.00010789,2]
[380037184,1755495032159,-248.71531821,0.00010789,2]
[380037186,1755495032168,-1000.0,0.000108,2]
[380037188,1755495032177,-200.0,0.000108,3]
[380037190,1755495032187,-5407.5023478,0.00010844,2]
[380037192,1755495032196,-3475.13043697,0.00010876,2]
[380037194,1755495032205,-1000.0,0.00010891,2]
[380037196,1755495032214,-200.0,0.000109,3]
[380037198,1755495032223,-1671.14986132,0.000109,2]
[380037200,1755495032233,-12118.18719248,0.000109,2]
[380037202,1755495032242,-442.41526589,0.000109,2]
[380037204,1755495032251,-500.0,0.00010973,2]
[380037206,1755495032262,-500.0,0.00010973,2]
[380037208,1755495032271,-500.0,0.00010973,2]
[380037210,1755495032281,-500.0,0.00010973,2]
[380037212,1755495032291,-500.06107947,0.00010973,2]
[380037214,1755495032302,-500.0,0.00010973,2]
[380037216,1755495032312,-501.35103141,0.00010973,2]
[380037218,1755495032321,-500.0,0.00010973,2]
[380037220,1755495032330,-495.57974681,0.00010973,2]
[380037222,1755495032339,-500.0,0.00010973,2]
[380037224,1755495032349,-500.0,0.00010973,2]
[380037226,1755495032358,-500.0,0.00010973,2]
[380037228,1755495032367,-500.0,0.00010973,2]
[380037230,1755495032376,-500.0,0.00010973,2]
[380037232,1755495032385,-500.0,0.00010973,2]
[380037234,1755495032394,-489.73005226,0.00010973,2]
[380037236,1755495032403,-500.0,0.00010973,2]
[380037238,1755495032412,-510.13897176,0.00010973,2]
[380037239,1755495032421,-500.69974188,0.00010973,2]
[380037241,1755495032431,-500.0,0.00010973,2]
[380037243,1755495032440,-500.0,0.00010973,2]
[380037245,1755495032449,-500.0,0.00010973,2]
[380037247,1755495032458,-500.0,0.00010973,2]
[380037249,1755495032468,-22043.79834766,0.0001099,2]
[380037251,1755495032477,-1087.1366466,0.00010992,2]
[380037253,1755495032486,-873.6357702,0.00010992,2]
[380037255,1755495032495,-660.1348938,0.00010992,2]
[380037257,1755495032504,-555.46486384,0.00010998,2]
[380037259,1755495032513,-4000.0,0.00010999,2]
[380037261,1755495032523,-7830.25,0.00010999,2]
[380037263,1755495032533,-7544.32,0.00010999,2]
[380037265,1755495032545,-1028.12241578,0.00010999,3]
[380037268,1755495032556,-1028.12241578,0.00010999,3]
[380037270,1755495032565,-1028.12241578,0.00010999,3]
[380037271,1755495032575,-1028.12241578,0.00010999,3]
[380037273,1755495032584,-1028.12241578,0.00010999,3]
[380037276,1755495032594,-1028.12241578,0.00010999,3]
[380037278,1755495032604,-1028.12241578,0.00010999,3]
[380037280,1755495032613,-1000.0,0.00010999,2]
[380037282,1755495032625,-1028.12241576,0.00010999,3]
[380037283,1755495032634,-1028.12241578,0.00010999,3]
[380037285,1755495032643,-150.0,0.00010999,2]
[380037287,1755495032652,-150.0,0.00010999,2]
[380037289,1755495032662,-150.0,0.00010999,2]
[380037292,1755495032672,-150.0,0.00010999,2]
[380037294,1755495032681,-150.0,0.00010999,2]
[380037296,1755495032690,-150.0,0.00010999,2]
[380037298,1755495032699,-150.0,0.00010999,2]
[380037300,1755495032709,-39803.91734275,0.00011,2]
[380037304,1755495032745,-3681.02149447,0.00011,2]
[380037305,1755495032910,-122625.08456919,0.00011,2]
[380037306,1755495037223,-151.0,9.669e-05,2]
[380037308,1755495037595,-199.96280035,9.669e-05,2]
[380037309,1755495037606,-167.602607,9.669e-05,2]
[380037310,1755495037616,-189.91073181,9.669e-05,2]
[380037311,1755495037628,-65.9507261,9.669e-05,2]
[380037312,1755495037638,-18187071.157773,0.00011,2]
[380037315,1755495037818,-23830.20560671,0.00011,2]
[380037319,1755495039646,-28957.5,0.00011,2]
[380037320,1755495039661,-1325.93961403,0.00011,2]
[380037321,1755495039672,-1867.34186428,0.00011,2]
[380037322,1755495039699,-1158.05,0.00011,2]
[380037323,1755495039711,-7148.67782959,0.00011,2]
[380037353,1755495042898,-11055.59985739,0.00011,2]
[380037413,1755495045376,-2184.83804905,0.00011,2]
[380037414,1755495045499,-4700.31827298,0.00011,2]
[380037415,1755495045735,-13043.69999989,0.00011,2]
[380037416,1755495045747,-537.07910636,0.00011,2]
[380037417,1755495119870,-153.99,9.669e-05,2]
[380037418,1755495121867,170.0,0.00011184,7]
[380037419,1755495128422,-67.97921756,9.669e-05,2]
[380037420,1755495129524,-37.19179213,9.669e-05,2]
[380037421,1755495133951,-87.81211943,9.669e-05,2]
[380037422,1755495133999,-30.37454073,9.669e-05,2]
[380037423,1755495145114,242983.27090758,0.00011,120]
[380037424,1755495145215,1238.55,0.00014,10]
[380037425,1755495239377,3674.522202,0.00014,10]
[380037426,1755495260601,219.527434,0.00014,10]
[380037427,1755495264051,158.095815,0.00014,10]
[380037428,1755495271024,4072.968848,0.00014,10]
[380037429,1755495272813,4432.423934,0.00014,10]
[380037430,1755495281895,179.911512,0.00014,10]
[380037432,1755495552099,-264.93777877,8.87e-05,2]
[380037433,1755495556666,-211.5924972,8.87e-05,2]
[380037434,1755495560075,-156.01492134,8.87e-05,2]
[380037435,1755495563173,-24.74559284,8.87e-05,2]
[380037436,1755495563196,-342.70920985,8.87e-05,2]
[380037437,1755495563333,-156.73221651,9.489e-05,2]
[380037438,1755495565716,-328.54306637,9.489e-05,2]
[380037439,1755495569983,-412.39957263,9.489e-05,2]
[380037440,1755495570697,-102.32514449,9.489e-05,2]
[380037441,1755495577281,-279.35033088,9.631e-05,2]
[380037442,1755495584323,-150.10341163,9.631e-05,2]
[380037443,1755495592623,-175.69286618,9.631e-05,2]
[380037444,1755495599076,-79.99144714,9.631e-05,2]
[380037445,1755495599120,-314.86194417,9.631e-05,2]
[380037447,1755495639213,401.16,0.00024,120]
[380037457,1755496193449,170.0,9.836e-05,7]
[380037463,1755496231719,-150.0,9.1e-05,2]
[380037464,1755496231729,-162.0,9.741e-05,2]
[380037465,1755496231738,-264.92536003,9.818e-05,2]
[380037466,1755496231747,-208.68684888,9.818e-05,2]
[380037467,1755496231757,-225.4421134,9.868e-05,2]
[380037468,1755496231766,-348.15630847,9.868e-05,2]
[380037469,1755496231801,3869.320406,0.00014,10]
[380037470,1755496231877,-92.21184099,9.868e-05,2]
[380037471,1755496231886,-326.33191663,9.869e-05,2]
[380037472,1755496231964,-2016.02808337,9.869e-05,2]
[380037473,1755496231975,-150.0,9.888e-05,2]
[380037474,1755496231986,-150.0,9.888e-05,2]
[380037475,1755496231995,-150.0,9.888e-05,2]
[380037476,1755496232008,-150.0,9.888e-05,2]
[380037477,1755496232019,-150.0,9.888e-05,2]
[380037478,1755496232029,-1200.0,9.919e-05,2]
[380037479,1755496232038,-250.0,9.921e-05,2]
[380037480,1755496232047,-300.0,9.952e-05,2]
[380037481,1755496232057,-1000.0,9.953e-05,2]
[380037482,1755496232066,-2682.77973406,9.953e-05,2]
[380037483,1755496232078,-332.17026594,9.953e-05,2]
[380037484,1755496232087,-697.75590007,9.953e-05,2]
[380037485,1755496232098,-152.82409993,9.953e-05,2]
[380037486,1755496232108,-197.28229628,0.0001,2]
[380037487,1755496232117,-150.0,0.00010254,2]
[380037488,1755496232126,-500.0,0.00010274,2]
[380037489,1755496232136,-150.0,0.0001028,2]
[380037490,1755496232145,-170.54,0.00010294,2]
[380037491,1755496232155,-153.44,0.00010513,2]
[380037492,1755496232165,-790.93,0.00010513,2]
[380037493,1755496232175,-3.99135418,0.00010532,2]
[380037496,1755496232396,-1896.00864582,0.00010532,2]
[380037497,1755496232406,-188.67947359,0.00010532,2]
[380037498,1755496235642,4210.802738,0.00014,10]
[380037539,1755496238257,-302.57436932,0.00010532,2]
[380037542,1755496238268,-1743.97991528,0.00010532,2]
[380037547,1755496238308,-464.76624181,0.00010532,2]
[380037549,1755496238318,-37.59307683,0.00010534,2]
[380037551,1755496238329,-115.84692317,0.00010534,2]
[380037553,1755496238338,-153.44,0.00010555,2]
[380037555,1755496238347,-153.44,0.00010576,2]
[380037557,1755496238357,-153.44,0.00010597,2]
[380037559,1755496238366,-153.44,0.00010618,2]
[380037561,1755496238375,-150.0,0.0001062,2]
[380037563,1755496238385,-500.0,0.00010712,2]
[380037565,1755496238394,-790.0667398,0.00010789,2]
[380037567,1755496238403,-248.71531821,0.00010789,2]
[380037569,1755496238416,-300.0,0.00010893,2]
[380037571,1755496238427,-646.65982734,0.00010893,2]
[380037573,1755496238436,-151.0,0.00010893,2]
[380037575,1755496238445,-160.0,0.00010893,2]
[380037577,1755496238454,-4.3324508,0.00010893,2]
[380037670,1755496239496,-495.6675492,0.00010893,2]
[380037671,1755496239505,-500.0,0.00010893,2]
[380037672,1755496239515,-500.0,0.00010893,2]
[380037673,1755496239524,-151.0,0.00010893,2]
[380037674,1755496239533,-500.0,0.00010893,2]
[380037675,1755496239542,-151.0,0.00010893,2]
[380037676,1755496239551,-500.0,0.00010893,2]
[380037677,1755496239561,-151.0,0.00010893,2]
[380037678,1755496239570,-500.0,0.00010893,2]
[380037679,1755496239578,-151.0,0.00010893,2]
[380037680,1755496239587,-500.0,0.00010893,2]
[380037682,1755496239596,-151.0,0.00010893,2]
[380037683,1755496239606,-500.0,0.00010893,2]
[380037685,1755496239615,-151.0,0.00010893,2]
[380037686,1755496239623,-500.0,0.00010893,2]
[380037687,1755496239633,-151.0,0.00010893,2]
[380037688,1755496239642,-500.0,0.00010893,2]
[380037689,1755496239651,-151.0,0.00010893,2]
[380037690,1755496239660,-500.0,0.00010893,2]
[380037691,1755496239669,-151.0,0.00010893,2]
[380037692,1755496239679,-500.0,0.00010893,2]
[380037693,1755496239688,-151.0,0.00010893,2]
[380037694,1755496239697,-151.0,0.00010893,2]
[380037695,1755496239706,-500.0,0.00010893,2]
[380037696,1755496239715,-151.0,0.00010893,2]
[380037697,1755496239724,-500.0,0.00010893,2]
[380037698,1755496239733,-151.0,0.00010893,2]
[380037699,1755496239742,-151.0,0.00010893,2]
[380037700,1755496239751,-151.0,0.00010893,2]
[380037701,1755496239762,-187.78006525,0.00010893,2]
[380037702,1755496239771,-500.0,0.00010893,2]
[380037703,1755496239781,-200.0,0.00010893,2]
[380037704,1755496239791,-151.0,0.00010893,2]
[380037705,1755496239800,-151.0,0.00010893,2]
[380037706,1755496239809,-150.0,0.00010898,2]
[380037707,1755496239818,-7658.261,0.00010899,2]
[380037708,1755496239828,-437.554,0.00010899,2]
[380037709,1755496239837,-21948.22877583,0.000109,2]
[380037710,1755496239846,-4555.9985,0.000109,2]
[380037711,1755496239856,-1000.0,0.000109,2]
[380037712,1755496239865,-6654.4074,0.000109,2]
[380037713,1755496239874,-244.96540477,0.000109,2]
[380037714,1755496239883,-476.58067938,0.000109,2]
[380037715,1755496239893,-999.7688,0.000109,2]
[380037716,1755496239902,-2500.0,0.000109,2]
[380037717,1755496239911,-325.42622417,0.000109,2]
[380037718,1755496239920,-2302.43875743,0.000109,2]
[380037719,1755496239931,-1251.40943873,0.000109,2]
[380037720,1755496239943,-442.41526591,0.000109,2]
[380037721,1755496239953,-1680.0,0.00010911,2]
[380037722,1755496239962,-420.0,0.00010947,2]
[380037723,1755496239971,-500.0,0.00010948,2]
[380037724,1755496239981,-343.0,0.00010959,2]
[380037725,1755496239990,-150.0,0.00010959,2]
[380037726,1755496239999,-4925.83,0.00010959,2]
[380037727,1755496240008,-1160.3069,0.00010959,2]
[380037728,1755496240020,-150.0,0.00010959,2]
[380037729,1755496240030,-500.0,0.00010973,2]
[380037730,1755496240039,-629.80551833,0.00010973,2]
[380037731,1755496240048,-500.0,0.00010973,2]
[380037732,1755496240057,-172.63172576,0.00010973,2]
[380037733,1755496240068,-518.11592461,0.00010973,2]
[380037734,1755496240077,-500.0,0.00010973,2]
[380037735,1755496240086,-501.3536025,0.00010973,2]
[380037736,1755496240095,-527.74833519,0.00010973,2]
[380037737,1755496240104,-500.0,0.00010973,2]
[380037738,1755496240113,-500.0,0.00010973,2]
[380037743,1755496240491,-500.0,0.00010973,2]
[380037744,1755496240501,-500.0,0.00010973,2]
[380037745,1755496240510,-500.0,0.00010973,2]
[380037746,1755496240519,-500.0,0.00010973,2]
[380037747,1755496240527,-500.0,0.00010973,2]
[380037748,1755496240536,-501.63134813,0.00010973,2]
[380037749,1755496240545,-500.0,0.00010973,2]
[380037750,1755496240554,-150.72577644,0.00010973,2]
[380037751,1755496240563,-500.0,0.00010973,2]
[380037752,1755496240573,-500.0,0.00010973,2]
[380037753,1755496240581,-500.0,0.00010973,2]
[380037754,1755496240590,-500.0,0.00010973,2]
[380037755,1755496240599,-500.0,0.00010973,2]
[380037756,1755496240608,-500.0,0.00010973,2]
[380037757,1755496240618,-500.0,0.00010973,2]
[380037758,1755496240627,-600.30022113,0.00010973,2]
[380037759,1755496240636,-500.0,0.00010973,2]
[380037760,1755496240645,-500.0,0.00010973,2]
[380037761,1755496240654,-500.0,0.00010973,2]
[380037762,1755496240663,-500.0,0.00010973,2]
[380037763,1755496240672,-500.0,0.00010973,2]
[380037764,1755496240683,-500.0,0.00010973,2]
[380037765,1755496240692,-500.0,0.00010973,2]
[380037766,1755496240701,-500.80732442,0.00010973,2]
[380037767,1755496240710,-500.0,0.00010973,2]
[380037768,1755496240719,-500.0,0.00010973,2]
[380037769,1755496240729,-254.8592077,0.00010986,2]
[380037770,1755496240738,-150.0,0.00010986,2]
[380037771,1755496240748,-150.0,0.00010986,2]
[380037772,1755496240757,-196.43860886,0.00010986,2]
[380037773,1755496240766,-250.12521967,0.00010986,2]
[380037774,1755496240776,-151.31924293,0.00010989,2]
[380037775,1755496240785,-500.0,0.00010989,2]
[380037776,1755496240794,-1000.0,0.0001099,2]
[380037777,1755496240803,-1000.0,0.0001099,2]
[380037778,1755496240813,-776.0,0.0001099,2]
[380037779,1755496240822,-2273.1227226,0.00010996,2]
[380037780,1755496240831,-1000.0,0.00010999,2]
[380037781,1755496240840,-1000.0,0.00010999,2]
[380037782,1755496240849,-1000.0,0.00010999,2]
[380037783,1755496240858,-1000.0,0.00010999,2]
[380037784,1755496240867,-1000.0,0.00010999,2]
[380037785,1755496240876,-2000.0,0.00010999,2]
[380037786,1755496240885,-2000.0,0.00010999,2]
[380037787,1755496240894,-2000.0,0.00010999,2]
[380037788,1755496240903,-2000.0,0.00010999,2]
[380037789,1755496240912,-31319.67134243,0.00010999,2]
[380037790,1755496240922,-1222.04,0.00010999,2]
[380037791,1755496240931,-9225323.39192071,0.00011,2]
[380037792,1755496240944,-448330.91,0.00011,2]
[380037793,1755496240954,-8422473.54645712,0.00011,2]
[380037794,1755496240989,-554.29135143,0.00011,2]
[380037795,1755496241000,-544.4,0.00011,2]
[380037796,1755496241084,-1212.18063696,0.00011,2]
[380037797,1755496242445,-1675.05793492,0.00011,2]
[380037800,1755496242516,-2134.99433772,0.00011,2]
[380037801,1755496242530,-16329.68215495,0.00011,2]
[380037802,1755496242542,-3950.35944005,0.00011,2]
[380037804,1755496242554,-11570.0,0.00011,2]
[380037805,1755496242687,-87.13860437,0.00011,2]
[380037806,1755496242758,-1141.88071278,0.00011,2]
[380037829,1755496244837,178.641022,0.00014,10]
[380037830,1755496245154,-2213.48748815,0.00011,2]
[380037831,1755496245173,-7273.39999437,0.00011,2]
[380037832,1755496245202,-3109.80001,0.00011,2]
[380037833,1755496245266,-1940.97145932,0.00011,2]
[380037834,1755496245278,-9932.09547715,0.00011,2]
[380037835,1755496245324,-16080.24449354,0.00011,2]
[380037837,1755496247655,-849.62080676,0.000109,2]
[380037838,1755496247664,-3326.99530679,0.00011,2]
[380037839,1755496247729,-432018.18177188,0.00011,2]
[380037840,1755496247884,-1077.14397957,0.00011,2]
[380037841,1755496247895,-5456.4000003,0.00011,2]
[380037842,1755496247906,-10910.09999128,0.00011,2]
[380037843,1755496259440,274.21162149,0.00014,10]
[380037844,1755496271279,151.0,0.00024,120]
[380037845,1755496271801,-295.16904813,9.818e-05,2]
[380037846,1755496333344,-158.49416842,9.421e-05,2]
[380037847,1755496351493,-66.02916161,9.421e-05,2]
[380037848,1755496352418,-25.47666997,9.421e-05,2]
[380037849,1755496453974,-152.0,9.1e-05,2]
[380037850,1755496474417,-491.367489,9.61e-05,2]
[380037851,1755496474445,-77.6242312,9.659e-05,2]
[380037852,1755496475662,-172.3757688,9.659e-05,2]
[380037853,1755496498098,-194.58197604,9.679e-05,2]
[380037854,1755496509871,-188.04220566,9.679e-05,2]
[380037855,1755496522390,-57.15536948,9.679e-05,2]
[380037856,1755496522760,-59.43267672,9.679e-05,2]
[380037857,1755496529268,1000.0,0.00024,120]
[380037858,1755496534257,-40.51838653,9.679e-05,2]
[380037859,1755496534287,-117.29109285,9.679e-05,2]
[380037860,1755496552218,-149.15325029,9.658e-05,2]
[380037861,1755496552878,-101.69349942,9.658e-05,2]
[380037862,1755496568313,-222.65133353,9.669e-05,2]
[380037864,1755496585836,-189.28356133,9.644e-05,2]
[380037865,1755496603271,-58.26643867,9.644e-05,2]
[380037866,1755496603299,-27.34866647,9.669e-05,2]
[380037867,1755496605740,14.53474142,9.618e-05,2]
[380037868,1755496620246,-139.60525858,9.618e-05,2]
[380037869,1755496637229,-231.64190372,9.618e-05,2]
[380037870,1755496654594,-1282.33809628,9.618e-05,2]
[380037871,1755496655373,-848.50685465,9.618e-05,2]
[380037872,1755496661207,-400.0,9.618e-05,2]
[380037873,1755496668173,-159.64698101,9.618e-05,2]
[380037874,1755496675785,-172.5,9.618e-05,2]
[380037875,1755496682626,-171.6598289,9.617e-05,2]
[380037876,1755496690054,-120.8798289,9.617e-05,2]
[380037877,1755496690084,-7.4603422,9.617e-05,2]
[380037878,1755496698368,-150.0,9.618e-05,2]
[380037879,1755496706122,-200.0,9.618e-05,2]
[380037880,1755496714301,-166.0054119,9.617e-05,2]
[380037881,1755496714743,-144.30569461,9.617e-05,2]
[380037882,1755496722846,-27.6803521,9.617e-05,2]
[380037883,1755496722876,-190.4141795,9.617e-05,2]
[380037884,1755496723028,-52.53443011,9.617e-05,2]
[380037885,1755496731346,-198.19658458,9.617e-05,2]
[380037886,1755496737861,-150.0,9.617e-05,2]
[380037887,1755496745605,-44.284018,9.617e-05,2]
[380037888,1755496745645,-61.431964,9.617e-05,2]
[380037889,1755496754213,-166.85011599,9.618e-05,2]
[380037890,1755496761798,-163.88197448,9.618e-05,2]
[380037891,1755496769810,-207.88588146,9.618e-05,2]
[380037892,1755496778405,-167.9,9.618e-05,2]
[380037893,1755496785672,-195.12730375,9.618e-05,2]
[380037894,1755496794710,-193.18,9.618e-05,2]
[380037895,1755496802013,-205.25393104,9.618e-05,2]
[380037896,1755496810362,-197.69989108,9.618e-05,2]
[380037897,1755496827256,-643.47708336,9.618e-05,2]
[380037898,1755496835164,-116.00104354,9.618e-05,2]
[380037899,1755496835575,-208.41893964,9.618e-05,2]
[380037900,1755496844867,-1644.44,9.68e-05,2]
[380037901,1755496844893,-192.07192918,9.68e-05,2]
[380037902,1755496844918,-1698.93,9.688e-05,2]
[380037903,1755496844944,-870.63,9.783e-05,2]
[380037904,1755496844972,-1200.0,9.998e-05,2]
[380037905,1755496844998,-200.0,0.00010019,2]
[380037906,1755496845025,-246.52,0.00010019,2]
[380037907,1755496845052,-1131.28,0.0001003,2]
[380037908,1755496845080,-447.76,0.00010308,2]
[380037909,1755496845107,-168.12,0.00010331,2]
[380037910,1755496845138,-250.0,0.0001058,2]
[380037911,1755496847903,-250.0,0.00010624,2]
[380037912,1755496847913,-1394.44,0.00010624,2]
[380037913,1755496847956,-192.07192918,0.00010624,2]
[380037914,1755496847990,-1698.93,0.00010624,2]
[380037915,1755496848008,-318.30807082,0.00010624,2]
[380037916,1755496848018,-348.39,0.00010624,2]
[380037917,1755496848028,-203.93192918,0.00010624,2]
[380037918,1755496848047,-1200.0,0.00010624,2]
[380037919,1755496848083,-200.0,0.00010624,2]
[380037920,1755496848178,-246.52,0.00010624,2]
[380037921,1755496848237,-1131.28,0.00010624,2]
[380037922,1755496848257,-447.76,0.00010624,2]
[380037923,1755496848283,-168.12,0.00010624,2]
[380037924,1755496848332,-250.0,0.00010624,2]
[380037925,1755496848367,-230.17829659,0.00010624,2]
[380037927,1755496946902,-100.0,9.9e-05,2]
[380037928,1755496946915,-50.0,9.9e-05,2]
[380037929,1755496993299,-350.043,0.00010308,2]
[380037930,1755496993319,-350.043,0.00010308,2]
[380037931,1755496993331,-998.844,0.00010308,2]
[380037932,1755497109510,-1000.0,0.00010034,2]
[380037933,1755497109534,-1026.96,0.0001004,2]
[380037934,1755497109558,-156.92,0.00010061,2]
[380037935,1755497109583,-761.671303,0.00010256,2]
[380037936,1755497109607,-460.44085756,0.00010307,2]
[380037937,1755497109630,-183.53431462,0.00010307,2]
[380037938,1755497109654,-300.0,0.00010307,2]
[380037939,1755497109678,-4987.725,0.00010308,2]
[380037940,1755497109704,-798.2,0.000104,2]
[380037941,1755497109728,-150.0,0.00010623,2]
[380037942,1755497109751,-1651.78977423,0.00010624,2]
[380037943,1755497109774,-299.99,0.00010624,2]
[380037944,1755497109796,-9999.99,0.00010624,2]
[380037945,1755497109819,-949.71,0.00010624,2]
[380037946,1755497109842,-150.99,0.00010624,2]
[380037947,1755497109870,-347.25,0.00010624,2]
[380037948,1755497109898,-150.99,0.00010624,2]
[380037949,1755497109921,-223.40213985,0.00010624,2]
[380037950,1755497109947,-250.0,0.00010648,2]
[380037951,1755497109970,-7000.0,0.0001089,2]
[380037952,1755497109994,-176.50660503,0.00010893,2]
[380037953,1755497110019,-151.0,0.00010893,2]
[380037954,1755497110044,-500.0,0.00010893,2]
[380037955,1755497110070,-151.0,0.00010893,2]
[380037956,1755497110094,-151.0,0.00010893,2]
[380037957,1755497110118,-151.0,0.00010893,2]
[380037958,1755497110142,-151.0,0.00010893,2]
[380037959,1755497110166,-151.0,0.00010893,2]
[380037960,1755497110190,-200.0,0.00010893,2]
[380037961,1755497110216,-151.0,0.00010893,2]
[380037962,1755497110602,-151.0,0.00010893,2]
[380037963,1755497110629,-151.0,0.00010893,2]
[380037964,1755497110655,-151.0,0.00010893,2]
[380037965,1755497110679,-151.0,0.00010893,2]
[380037966,1755497110704,-151.0,0.00010893,2]
[380037967,1755497110728,-151.0,0.00010893,2]
[380037968,1755497110753,-151.0,0.00010893,2]
[380037969,1755497110778,-500.0,0.00010893,2]
[380037970,1755497110802,-500.0,0.00010893,2]
[380037971,1755497110826,-500.0,0.00010893,2]
[380037972,1755497110850,-500.0,0.00010893,2]
[380037973,1755497110874,-500.0,0.00010893,2]
[380037974,1755497110900,-500.0,0.00010893,2]
[380037975,1755497110924,-500.0,0.00010893,2]
[380037976,1755497110950,-500.0,0.00010893,2]
[380037977,1755497110974,-500.0,0.00010893,2]
[380037978,1755497110997,-515.758649,0.00010893,2]
[380037979,1755497111027,-151.0,0.00010893,2]
[380037980,1755497111063,-25508.1228,0.00010899,2]
[380037981,1755497111086,-2500.0,0.00010899,2]
[380037982,1755497111110,-1000.0,0.000109,2]
[380037983,1755497111133,-2500.0,0.000109,2]
[380037984,1755497111157,-2500.0,0.000109,2]
[380037985,1755497111181,-26985.04855671,0.000109,2]
[380037986,1755497143058,500.24793246,0.00010308,7]
[380037987,1755497214956,5715.18749686,0.00024,120]
[380037988,1755497241988,8572.7812452,0.00024,120]
[380037989,1755497266683,170.0,9.982e-05,7]
[380037994,1755497359731,-2600.78,0.0001002,2]
[380037995,1755497359755,-165.19,0.0001002,2]
[380037996,1755497359778,-290.99,0.00010124,2]
[380037997,1755497359803,-822.22,0.00010199,2]
[380037998,1755497359827,-34558.0916,0.00010852,2]
[380037999,1755497359852,-1000.0,0.00010852,2]
[380038000,1755497359874,-999.7688,0.0001089,2]
[380038001,1755497359897,-2500.0,0.0001089,2]
[380038002,1755497359921,-300.0,0.00010899,2]
[380038003,1755497359945,-150.0,0.00010899,2]
[380038004,1755497359968,-322.30860029,0.00010899,2]
[380038005,1755497359997,-44590.65099971,0.000109,2]
[380038006,1755497393624,240.386,0.00024,120]
[380038007,1755497409351,240.386,0.00024,120]
[380038008,1755497422816,1818.34394,0.00016,30]
[380038009,1755497423080,1818.34394,0.00016,30]
[380038010,1755497423372,1818.34394,0.00016,30]
[380038011,1755497423637,1818.34394,0.00016,30]
[380038012,1755497424792,1818.34398,0.00016,30]
[380038016,1755497432068,-1000.0,0.00010899,2]
[380038017,1755497432078,-166.76456379,0.00010899,2]
[380038018,1755497432093,-2333.23543621,0.00010899,2]
[380038019,1755497432103,-1200.0,0.00010899,2]
[380038020,1755497432113,-21356.51464358,0.000109,2]
[380038021,1755497432122,-1251.40943873,0.000109,2]
[380038022,1755497432131,-244.96540477,0.000109,2]
[380038023,1755497432141,-6654.4074,0.000109,2]
[380038024,1755497432151,-476.58067938,0.000109,2]
[380038025,1755497432160,-7119.22242042,0.000109,2]
[380038026,1755497432170,-151.0,0.000109,2]
[380038027,1755497432179,-302.0,0.000109,2]
[380038028,1755497432189,-192.76369067,0.000109,2]
[380038029,1755497432198,-2808.82302187,0.000109,2]
[380038030,1755497432207,-221.20763296,0.000109,2]
[380038031,1755497432217,-7119.2224204,0.0001095,2]
[380038032,1755497432226,-459.84,0.00010959,2]
[380038033,1755497432236,-343.0,0.00010959,2]
[380038035,1755497432246,-1160.3069,0.00010959,2]
[380038037,1755497432255,-150.0,0.00010959,2]
[380038039,1755497432266,-150.0,0.00010959,2]
[380038041,1755497432275,-629.80551833,0.00010973,2]
[380038043,1755497432285,-501.3536025,0.00010973,2]
[380038045,1755497432294,-500.0,0.00010973,2]
[380038047,1755497432304,-500.0,0.00010973,2]
[380038049,1755497432313,-500.0,0.00010973,2]
[380038051,1755497432323,-500.0,0.00010973,2]
[380038053,1755497432332,-500.0,0.00010973,2]
[380038056,1755497432341,-500.0,0.00010973,2]
[380038059,1755497432351,-501.63134813,0.00010973,2]
[380038062,1755497432361,-150.72577644,0.00010973,2]
[380038065,1755497432370,-527.74833519,0.00010973,2]
[380038068,1755497432383,-500.0,0.00010973,2]